[Event "7th Francophone-ch 2019"]
[Site "Paris"]
[Date "2019.08.06"]
[Round "3.4"]
[White "Leconte, Maria"]
[Black "Flom, Gabriel"]
[Result "0-1"]
[ECO "B10"]
[WhiteElo "2245"]
[BlackElo "2494"]
[Annotator "ChessBase"]
[PlyCount "92"]
[EventDate "2019.08.04"]
[EventType "swiss"]
[EventCountry "FRA"]
[SourceTitle "playchess.com"]
[Source "ChessBase"]
[SourceQuality "1"]
[TimeControl "40/5400+30:1800+30"]

1. e4 {[%emt 0:00:00]} c6 {[%emt 0:00:00]} 2. c4 {[%emt 0:01:38]} e5 {[%emt 0:00:17]} 3. Nf3 {[%emt 0:00:53]} d6 {[%emt 0:00:04]} 4. d4 {[%emt 0:00:21]} Bg4 {[%emt 0:01:06]} 5. d5 {[%emt 0:08:20]} Nf6 {[%emt 0:02:47]} 6. Nc3 {[%emt 0:00:25]} Nbd7 {[%emt 0:02:32]} 7. h3 {[%emt 0:02:42]} Bxf3 {[%emt 0:00:03]} 8. Qxf3 {[%emt 0:00:09]} Be7 {[%emt 0:01:56]} 9. Bd3 {[%emt 0:03:37]} h5 {[%emt 0:22:13]} 10. Bc2 {[%emt 0:21:28]} h4 {[%emt 0:02:04]} 11. Bg5 {[%emt 0:13:32]} Nh5 {[%emt 0:00:29]} 12. Bxe7 {[%emt 0:00:14]} Qxe7 {[%emt 0:00:05]} 13. dxc6 {[%emt 0:01:16]} bxc6 {[%emt 0:00:04]} 14. Ba4 {[%emt 0:00:02]} Rc8 {[%emt 0:01:04]} 15. Qg4 {[%emt 0:14:08]} Rc7 {[%emt 0:01:50]} 16. O-O-O {[%emt 0:00:09]} Kf8 {[%emt 0:02:13]} 17. Rd2 {[%emt 0:02:22]} Nhf6 {[%emt 0:04:13]} 18. Qf3 {[%emt 0:01:42]} Ne8 {[%emt 0:12:38]} 19. b4 {[%emt 0:00:14]} a5 {[%emt 0:01:13]} 20. a3 {[%emt 0:04:36]} axb4 {[%emt 0:01:22]} 21. axb4 {[%emt 0:00:02]} Nb6 {[%emt 0:00:12]} 22. Bb3 {[%emt 0:00:49]} c5 {[%emt 0:02:24]} 23. b5 {[%emt 0:00:44]} Ra7 {[%emt 0:04:20]} 24. Kb2 {[%emt 0:01:00]} Qg5 {[%emt 0:01:02]} 25. Rhd1 {[%emt 0:01:10]} Rh6 {[%emt 0:01:24]} 26. Qg4 {[%emt 0:01:56]} Qe7 {[%emt 0:03:33]} 27. Ra1 {[%emt 0:01:51]} Rxa1 {[%emt 0:00:07]} 28. Kxa1 {[%emt 0:00:03]} Rg6 {[%emt 0:00:32]} 29. Qh5 {[%emt 0:01:51]} Kg8 {[%emt 0:00:15]} 30. f3 {[%emt 0:02:36]} Nc7 {[%emt 0:07:42]} 31. Nd5 {[%emt 0:00:25]} Ncxd5 {[%emt 0:01:25]} 32. exd5 {[%emt 0:00:14]} e4 {[%emt 0:01:40]} 33. Re2 {[%emt 0:10:11]} Qf6+ {[%emt 0:02:37]} 34. Ka2 {[%emt 0:00:04]} Rg5 {[%emt 0:00:59]} 35. Qxh4 {[%emt 0:00:14]} Rxg2 {[%emt 0:01:11]} 36. Qxe4 {[%emt 0:00:16]} Rg1 {[%emt 0:00:21]} 37. Re1 {[%emt 0:02:33]} Rg3 {[%emt 0:00:25]} 38. Qe8+ {[%emt 0:03:05]} Kh7 {[%emt 0:00:06]} 39. Re7 {[%emt 0:01:03]} Qxf3 {[%emt 0:07:21]} 40. Bc2+ {[%emt 0:00:24]} f5 {[%emt 0:00:03]} 41. Bd3 {[%emt 0:12:23]} Nxc4 {[%emt 0:04:51]} 42. Re2 {[%emt 0:02:45]} Ne5 {[%emt 0:01:41]} 43. Re3 {[%emt 0:10:25]} Rg2+ {[%emt 0:00:22]} 44. Ka3 {[%emt 0:00:17]} Qxe3 {[%emt 0:01:17]} 45. Qh5+ {[%emt 0:00:14]} Qh6 {[%emt 0:00:06]} 46. Bxf5+ {[%emt 0:02:19]} g6 {[%emt 0:00:06]} 0-1

[Event "7th Francophone-ch 2019"]
[Site "Paris"]
[Date "2019.08.06"]
[Round "3.5"]
[White "Vedmediuc, Serghei"]
[Black "Le Quang, Kim"]
[Result "1/2-1/2"]
[ECO "B90"]
[WhiteElo "2450"]
[BlackElo "2243"]
[Annotator "ChessBase"]
[PlyCount "88"]
[EventDate "2019.08.04"]
[EventType "swiss"]
[EventCountry "FRA"]
[SourceTitle "playchess.com"]
[Source "ChessBase"]
[SourceQuality "1"]
[TimeControl "40/5400+30:1800+30"]

1. e4 {[%emt 0:01:18]} c5 {[%emt 0:00:01]} 2. Nf3 {[%emt 0:00:45]} d6 {[%emt 0:00:11]} 3. d4 {[%emt 0:00:06]} cxd4 {[%emt 0:00:05]} 4. Nxd4 {[%emt 0:00:06]} Nf6 {[%emt 0:00:06]} 5. Nc3 {[%emt 0:00:15]} a6 {[%emt 0:00:15]} 6. f3 {[%emt 0:01:24]} e5 {[%emt 0:00:25]} 7. Nb3 {[%emt 0:00:05]} Be7 {[%emt 0:00:42]} 8. Be3 {[%emt 0:00:17]} Be6 {[%emt 0:02:08]} 9. Qd2 {[%emt 0:00:20]} O-O {[%emt 0:00:09]} 10. O-O-O {[%emt 0:00:08]} a5 {[%emt 0:00:22]} 11. a4 {[%emt 0:02:05]} Nc6 {[%emt 0:00:17]} 12. g4 {[%emt 0:01:44]} Nb4 {[%emt 0:00:36]} 13. g5 {[%emt 0:02:36]} Nh5 {[%emt 0:00:12]} 14. Kb1 {[%emt 0:00:37]} Rc8 {[%emt 0:01:29]} 15. Rg1 {[%emt 0:03:40]} g6 {[%emt 0:02:08]} 16. Bb5 {[%emt 0:21:05]} Qc7 {[%emt 0:07:04]} 17. Qf2 {[%emt 0:09:06]} Nf4 {[%emt 0:01:45]} 18. Bxf4 {[%emt 0:15:41]} exf4 {[%emt 0:00:05]} 19. Nd4 {[%emt 0:00:05]} d5 {[%emt 0:04:25]} 20. exd5 {[%emt 0:10:03]} Bxd5 {[%emt 0:12:13]} 21. h4 {[%emt 0:02:07]} Bc5 {[%emt 0:02:58]} 22. Rd2 {[%emt 0:00:50]} Rfd8 {[%emt 0:14:23]} 23. Rgd1 {[%emt 0:00:16]} Qb6 {[%emt 0:09:24]} 24. Nce2 {[%emt 0:00:45]} Nc6 {[%emt 0:03:59]} 25. Bxc6 {[%emt 0:25:30]} Bxc6 {[%emt 0:01:26]} 26. Nxf4 {[%emt 0:00:01]} Bxa4 {[%emt 0:01:24]} 27. Nfe2 {[%emt 0:00:01]} Bb4 {[%emt 0:01:49]} 28. Qe3 {[%emt 0:01:53]} Bxd2 29. Rxd2 {[%emt 0:00:02]} Re8 {[%emt 0:05:41]} 30. Qf2 {[%emt 0:00:26]} Re7 {[%emt 0:03:34]} 31. Ng3 {[%emt 0:00:58]} Qc7 {[%emt 0:11:48]} 32. Ne4 {[%emt 0:00:04]} Kg7 {[%emt 0:01:57]} 33. h5 {[%emt 0:00:20]} Qe5 {[%emt 0:01:31]} 34. Re2 {[%emt 0:00:28]} Qf4 {[%emt 0:01:34]} 35. hxg6 {[%emt 0:01:28]} hxg6 {[%emt 0:00:49]} 36. Qe1 {[%emt 0:00:45]} b6 {[%emt 0:02:20]} 37. Qg1 {[%emt 0:00:04]} Rh8 {[%emt 0:01:32]} 38. b3 {[%emt 0:00:51]} Bd7 {[%emt 0:00:16]} 39. Nf6 {[%emt 0:00:13]} Rxe2 40. Nxe2 {[%emt 0:00:01]} Qd2 {[%emt 0:08:10]} 41. Ne4 {[%emt 0:13:08]} Qb4 {[%emt 0:02:04]} 42. Nc1 {[%emt 0:01:37]} Rh4 {[%emt 0:15:50]} 43. Nd3 {[%emt 0:01:22]} Qe7 {[%emt 0:02:27]} 44. Qxb6 {[%emt 0:04:59]} Bf5 {[%emt 0:02:08]} 1/2-1/2

[Event "7th Francophone-ch 2019"]
[Site "Paris"]
[Date "2019.08.06"]
[Round "3.6"]
[White "Geenen, Marc"]
[Black "Prie, Eric"]
[Result "1/2-1/2"]
[ECO "B01"]
[WhiteElo "2247"]
[BlackElo "2436"]
[Annotator "NA"]
[PlyCount "49"]
[EventDate "2019.08.04"]
[EventType "swiss"]
[EventCountry "FRA"]
[SourceTitle "playchess.com"]
[Source "ChessBase"]
[SourceQuality "1"]
[TimeControl "40/5400+30:1800+30"]

1. e4 {[%emt 0:00:00]} d5 {[%emt 0:08:31]} 2. exd5 {[%emt 0:00:00]} Qxd5 {[%emt 0:00:13]} 3. Nc3 {[%emt 0:00:00]} Qa5 {[%emt 0:00:07]} 4. d4 {[%emt 0:00:00]} Nf6 {[%emt 0:00:13]} 5. Nf3 {[%emt 0:00:03]} Bf5 {[%emt 0:00:15]} 6. Bc4 {[%emt 0:00:18]} e6 {[%emt 0:00:08]} 7. Bd2 {[%emt 0:00:07]} Bb4 {[%emt 0:00:09]} 8. a3 {[%emt 0:00:09]} Bxc3 {[%emt 0:00:10]} 9. Bxc3 {[%emt 0:00:03]} Qb6 {[%emt 0:00:09]} 10. d5 {[%emt 0:00:20]} Nbd7 {[%emt 0:00:09]} 11. O-O {[%emt 0:00:40]} exd5 {[%emt 0:14:57]} 12. Re1+ {[%emt 0:02:52]} Be6 {[%emt 0:00:11]} 13. Bxd5 {[%emt 0:00:42]} Nxd5 {[%emt 0:00:15]} 14. Qxd5 {[%emt 0:00:27]} O-O-O {[%emt 0:03:40]} 15. Qa5 {[%emt 0:11:58]} Qxa5 {[%emt 0:10:04]} 16. Bxa5 {[%emt 0:01:00]} Nc5 {[%emt 0:04:56]} 17. Bb4 {[%emt 0:10:34]} Rd5 {[%emt 0:02:24]} 18. Rad1 {[%emt 0:15:02]} Rhd8 {[%emt 0:02:09]} 19. Rxd5 {[%emt 0:00:19]} Rxd5 {[%emt 0:00:08]} 20. Re5 {[%emt 0:09:25]} Nd7 {[%emt 0:03:10]} 21. Rxd5 {[%emt 0:04:45]} Bxd5 {[%emt 0:00:09]} 22. Nd2 {[%emt 0:00:28]} c5 {[%emt 0:01:05]} 23. Bc3 {[%emt 0:00:10]} g6 {[%emt 0:02:47]} 24. f3 {[%emt 0:02:49]} Nf8 {[%emt 0:22:58]} 25. Kf2 {[%emt 0:08:31]} 1/2-1/2

[Event "7th Francophone-ch 2019"]
[Site "Paris"]
[Date "2019.08.06"]
[Round "3.7"]
[White "Rakotomaharo, Fy Antenaina"]
[Black "Sim, Sylvain"]
[Result "1-0"]
[ECO "B33"]
[WhiteElo "2419"]
[BlackElo "2211"]
[Annotator "NA"]
[PlyCount "83"]
[EventDate "2019.08.04"]
[EventType "swiss"]
[EventCountry "FRA"]
[SourceTitle "playchess.com"]
[Source "ChessBase"]
[SourceQuality "1"]
[TimeControl "40/5400+30:1800+30"]

1. e4 {[%emt 0:00:00]} c5 {[%emt 0:00:00]} 2. Nf3 {[%emt 0:00:00]} Nc6 {[%emt 0:00:00]} 3. d4 {[%emt 0:00:00]} cxd4 {[%emt 0:00:00]} 4. Nxd4 {[%emt 0:00:00]} Nf6 {[%emt 0:00:01]} 5. Nc3 {[%emt 0:00:00]} e5 {[%emt 0:00:04]} 6. Ndb5 {[%emt 0:00:00]} d6 {[%emt 0:00:05]} 7. Bg5 {[%emt 0:00:00]} a6 {[%emt 0:00:04]} 8. Na3 {[%emt 0:00:01]} b5 {[%emt 0:00:04]} 9. Nd5 {[%emt 0:00:04]} Be7 {[%emt 0:00:05]} 10. Bxf6 {[%emt 0:00:04]} Bxf6 {[%emt 0:00:03]} 11. c3 {[%emt 0:00:05]} O-O {[%emt 1:35:04]} 12. Nc2 {[%emt 0:00:07]} Rb8 {[%emt 0:00:00]} 13. Be2 {[%emt 0:01:15]} Bg5 {[%emt 0:00:00]} 14. O-O {[%emt 0:00:41]} Be6 {[%emt 0:00:00]} 15. Qd3 {[%emt 0:05:25]} a5 {[%emt 0:00:00]} 16. Nce3 {[%emt 0:02:07]} Bxe3 {[%emt 0:00:00]} 17. Nxe3 {[%emt 0:00:34]} Qd7 {[%emt 0:00:00]} 18. Rfd1 {[%emt 0:05:33]} Rfd8 {[%emt 0:00:00]} 19. h3 {[%emt 0:00:07]} Ne7 {[%emt 0:00:00]} 20. Bg4 {[%emt 0:05:01]} Bxg4 {[%emt 0:00:00]} 21. hxg4 {[%emt 0:00:18]} b4 {[%emt 0:00:00]} 22. c4 {[%emt 0:04:07]} Qe6 {[%emt 0:00:00]} 23. Rd2 {[%emt 0:12:43]} g6 {[%emt 0:00:00]} 24. b3 {[%emt 0:05:10]} Nc6 {[%emt 0:00:00]} 25. Nd5 {[%emt 0:00:15]} h6 {[%emt 0:00:00]} 26. Rad1 {[%emt 0:04:54]} Kg7 {[%emt 0:00:00]} 27. f3 {[%emt 0:00:12]} Nd4 {[%emt 0:00:00]} 28. Qe3 {[%emt 0:00:32]} f6 {[%emt 0:00:00]} 29. Rf1 {[%emt 0:02:40]} Nc6 {[%emt 0:00:00]} 30. Nc7 {[%emt 0:02:26]} Qe7 {[%emt 0:00:00]} 31. Nb5 {[%emt 0:00:05]} Ra8 {[%emt 0:02:28]} 32. Qb6 {[%emt 0:03:04]} Nd4 {[%emt 0:01:34]} 33. Nxd4 {[%emt 0:00:30]} exd4 {[%emt 0:00:11]} 34. Rxd4 {[%emt 0:02:11]} a4 {[%emt 0:00:59]} 35. Rfd1 {[%emt 0:01:21]} axb3 {[%emt 0:00:41]} 36. axb3 {[%emt 0:00:04]} g5 {[%emt 0:03:32]} 37. Qxb4 {[%emt 0:03:59]} Rdb8 {[%emt 0:02:14]} 38. Qxd6 {[%emt 0:02:38]} Qxd6 {[%emt 0:00:50]} 39. Rxd6 {[%emt 0:00:02]} Rxb3 {[%emt 0:00:12]} 40. Rd7+ {[%emt 0:01:10]} Kf8 {[%emt 0:01:16]} 41. Rh7 {[%emt 0:36:12]} Kg8 {[%emt 0:01:36]} 42. Rc7 {[%emt 0:00:00]} 1-0

[Event "7th Francophone-ch 2019"]
[Site "Paris"]
[Date "2019.08.06"]
[Round "3.8"]
[White "Defromont, Benjamin"]
[Black "Dardha, Daniel"]
[Result "1-0"]
[ECO "B01"]
[WhiteElo "2245"]
[BlackElo "2420"]
[Annotator "NA"]
[PlyCount "105"]
[EventDate "2019.08.04"]
[EventType "swiss"]
[EventCountry "FRA"]
[SourceTitle "playchess.com"]
[Source "ChessBase"]
[SourceQuality "1"]
[TimeControl "40/5400+30:1800+30"]

1. e4 {[%emt 0:00:00]} d5 {[%emt 0:00:00]} 2. exd5 {[%emt 0:00:01]} Nf6 {[%emt 0:00:00]} 3. d4 {[%emt 0:00:08]} Nxd5 {[%emt 0:00:32]} 4. Nf3 {[%emt 0:01:36]} g6 {[%emt 0:00:38]} 5. c4 {[%emt 0:01:55]} Nb6 {[%emt 0:00:05]} 6. a4 {[%emt 0:00:05]} a5 {[%emt 0:01:21]} 7. c5 {[%emt 0:00:28]} Nd5 {[%emt 0:00:08]} 8. Bc4 {[%emt 0:00:10]} Bg7 {[%emt 0:03:26]} 9. Qb3 {[%emt 0:00:36]} e6 {[%emt 0:07:10]} 10. Nc3 {[%emt 0:03:10]} Nc6 {[%emt 0:09:07]} 11. Nxd5 {[%emt 0:12:18]} exd5 {[%emt 0:00:06]} 12. Bxd5 {[%emt 0:00:06]} O-O {[%emt 0:00:59]} 13. Be3 {[%emt 0:09:03]} Nb4 {[%emt 0:09:49]} 14. Bc4 {[%emt 0:01:49]} Bf5 {[%emt 0:01:19]} 15. O-O {[%emt 0:08:32]} Bc2 {[%emt 0:00:30]} 16. Qc3 {[%emt 0:04:10]} Be4 {[%emt 0:00:31]} 17. Ne5 {[%emt 0:05:11]} Bd5 {[%emt 0:03:40]} 18. Rfe1 {[%emt 0:06:02]} Re8 {[%emt 0:02:24]} 19. Bf4 {[%emt 0:01:29]} Qf6 {[%emt 0:09:28]} 20. Bg3 {[%emt 0:02:15]} Rad8 {[%emt 0:00:42]} 21. Rad1 {[%emt 0:02:15]} Bxc4 {[%emt 0:04:19]} 22. Qxc4 {[%emt 0:05:59]} Qf5 {[%emt 0:06:38]} 23. h3 {[%emt 0:05:55]} c6 {[%emt 0:01:28]} 24. Nf3 {[%emt 0:06:39]} Nd5 {[%emt 0:17:08]} 25. Qb3 {[%emt 0:03:44]} Rxe1+ {[%emt 0:02:19]} 26. Rxe1 {[%emt 0:00:13]} Qc8 {[%emt 0:01:33]} 27. Re2 {[%emt 0:06:59]} Bf6 {[%emt 0:02:40]} 28. Qd1 {[%emt 0:02:09]} Ne7 {[%emt 0:03:02]} 29. Be5 {[%emt 0:03:29]} Bxe5 {[%emt 0:00:34]} 30. Rxe5 {[%emt 0:00:09]} Qd7 {[%emt 0:00:24]} 31. Qe1 {[%emt 0:03:15]} Nf5 {[%emt 0:00:07]} 32. Re4 {[%emt 0:00:52]} Qc7 {[%emt 0:13:53]} 33. g4 {[%emt 0:03:30]} Ng7 {[%emt 0:00:00]} 34. Re7 {[%emt 0:00:05]} Qf4 {[%emt 0:00:00]} 35. Qe3 {[%emt 0:00:36]} Qf6 {[%emt 0:00:00]} 36. Rxb7 {[%emt 0:00:56]} Re8 {[%emt 0:00:00]} 37. Qb3 {[%emt 0:00:48]} Qf4 {[%emt 0:00:00]} 38. Ne5 {[%emt 0:00:36]} Ne6 {[%emt 0:00:00]} 39. Qf3 {[%emt 0:01:26]} Nxd4 {[%emt 0:00:42]} 40. Qxf4 {[%emt 0:00:13]} Ne2+ {[%emt 0:00:02]} 41. Kh2 {[%emt 0:30:45]} Nxf4 {[%emt 0:30:05]} 42. Nxc6 {[%emt 0:00:00]} Nd3 {[%emt 0:00:00]} 43. Rb5 {[%emt 0:00:00]} Re2 {[%emt 0:00:00]} 44. Nxa5 {[%emt 0:00:00]} Rxf2+ {[%emt 0:00:00]} 45. Kg3 {[%emt 0:00:00]} Rc2 {[%emt 0:00:00]} 46. c6 {[%emt 0:00:00]} Kg7 {[%emt 0:00:00]} 47. b3 {[%emt 0:00:00]} Rc3 {[%emt 0:00:00]} 48. Kh2 {[%emt 0:00:00]} Rc2+ {[%emt 0:00:00]} 49. Kg1 {[%emt 0:00:00]} Nc5 {[%emt 0:03:30]} 50. Rb4 {[%emt 0:00:22]} Nd3 {[%emt 0:01:12]} 51. Rc4 {[%emt 0:00:37]} Rd2 {[%emt 0:00:12]} 52. c7 {[%emt 0:00:51]} Ne5 {[%emt 0:00:29]} 53. Rc3 {[%emt 0:00:11]} 1-0

[Event "7th Francophone-ch 2019"]
[Site "Paris"]
[Date "2019.08.06"]
[Round "3.9"]
[White "Maisuradze, Nino"]
[Black "Nezad, Husein Aziz"]
[Result "1/2-1/2"]
[ECO "D00"]
[WhiteElo "2197"]
[BlackElo "2400"]
[Annotator "NA"]
[PlyCount "85"]
[EventDate "2019.08.04"]
[EventType "swiss"]
[EventCountry "FRA"]
[SourceTitle "playchess.com"]
[Source "ChessBase"]
[SourceQuality "1"]
[TimeControl "40/5400+30:1800+30"]

1. c4 {[%emt 0:01:52]} Nf6 {[%emt 0:02:54]} 2. g3 {[%emt 0:00:30]} c6 {[%emt 0:01:22]} 3. Bg2 {[%emt 0:00:44]} d5 {[%emt 0:00:11]} 4. d4 {[%emt 0:00:39]} Bf5 {[%emt 0:01:52]} 5. Qb3 {[%emt 0:03:07]} Qb6 {[%emt 0:01:50]} 6. Qxb6 {[%emt 0:02:10]} axb6 {[%emt 0:00:14]} 7. cxd5 {[%emt 0:00:32]} cxd5 {[%emt 0:04:21]} 8. Nc3 {[%emt 0:00:15]} e6 {[%emt 0:02:14]} 9. Bd2 {[%emt 0:01:49]} Nc6 {[%emt 0:00:53]} 10. Nf3 {[%emt 0:21:29]} Ne4 {[%emt 0:01:33]} 11. e3 {[%emt 0:04:38]} Nb4 {[%emt 0:12:45]} 12. O-O {[%emt 0:11:27]} Nd3 {[%emt 0:10:43]} 13. Nxe4 {[%emt 0:07:05]} Bxe4 {[%emt 0:00:03]} 14. Bc3 {[%emt 0:02:19]} b5 {[%emt 0:09:56]} 15. a3 {[%emt 0:00:40]} Bd6 {[%emt 0:08:21]} 16. Rfd1 {[%emt 0:04:13]} Ke7 {[%emt 0:05:50]} 17. Ne5 {[%emt 0:34:06]} Bxg2 {[%emt 0:06:45]} 18. Kxg2 {[%emt 0:00:38]} Nxe5 {[%emt 0:03:18]} 19. dxe5 {[%emt 0:00:01]} Bc5 {[%emt 0:01:01]} 20. Rac1 {[%emt 0:00:35]} Rhc8 {[%emt 0:01:14]} 21. Rd2 {[%emt 0:00:57]} Rc6 {[%emt 0:03:49]} 22. Rdc2 {[%emt 0:00:10]} Kd7 {[%emt 0:01:19]} 23. Kf3 {[%emt 0:00:45]} Rac8 {[%emt 0:04:41]} 24. Bd4 {[%emt 0:00:43]} Bxd4 {[%emt 0:12:45]} 25. Rxc6 {[%emt 0:00:01]} Rxc6 {[%emt 0:00:03]} 26. Rxc6 {[%emt 0:00:04]} Kxc6 {[%emt 0:00:10]} 27. exd4 {[%emt 0:00:01]} b4 {[%emt 0:00:06]} 28. a4 {[%emt 0:00:04]} b3 {[%emt 0:00:05]} 29. Ke3 {[%emt 0:00:07]} Kb6 {[%emt 0:00:05]} 30. Kd3 {[%emt 0:02:39]} Ka5 {[%emt 0:00:01]} 31. Kc3 {[%emt 0:00:36]} Kxa4 {[%emt 0:00:02]} 32. h4 {[%emt 0:00:22]} h6 {[%emt 0:03:27]} 33. f3 {[%emt 0:00:37]} g6 {[%emt 0:01:50]} 34. g4 {[%emt 0:00:14]} h5 {[%emt 0:00:38]} 35. g5 {[%emt 0:00:17]} b6 {[%emt 0:00:13]} 36. f4 {[%emt 0:00:04]} b5 {[%emt 0:00:36]} 37. Kd2 {[%emt 0:00:09]} Kb4 {[%emt 0:00:15]} 38. Kd3 {[%emt 0:00:03]} Ka5 {[%emt 0:00:19]} 39. Kc3 {[%emt 0:00:47]} b4+ {[%emt 0:00:02]} 40. Kd2 {[%emt 0:00:14]} Kb5 {[%emt 0:00:12]} 41. Kd3 {[%emt 0:30:02]} Kb6 {[%emt 0:30:24]} 42. Kd2 {[%emt 0:00:20]} Kb5 {[%emt 0:00:04]} 43. Kd3 {[%emt 0:00:01]} 1/2-1/2

[Event "7th Francophone-ch 2019"]
[Site "Paris"]
[Date "2019.08.06"]
[Round "3.10"]
[White "Ek, Alexandre"]
[Black "Okhotnik, Vladimir"]
[Result "0-1"]
[ECO "C41"]
[WhiteElo "2212"]
[BlackElo "2381"]
[Annotator "NA"]
[PlyCount "110"]
[EventDate "2019.08.04"]
[EventType "swiss"]
[EventCountry "FRA"]
[SourceTitle "playchess.com"]
[Source "ChessBase"]
[SourceQuality "1"]
[TimeControl "40/5400+30:1800+30"]

1. e4 {[%emt 0:04:46]} d6 {[%emt 0:00:00]} 2. d4 {[%emt 0:00:17]} Nf6 {[%emt 0:00:00]} 3. Nc3 {[%emt 0:00:56]} e5 {[%emt 0:00:00]} 4. Nf3 {[%emt 0:01:07]} Nbd7 {[%emt 0:00:02]} 5. Bc4 {[%emt 0:01:55]} Be7 {[%emt 0:00:08]} 6. O-O {[%emt 0:03:14]} O-O {[%emt 0:00:06]} 7. a4 {[%emt 0:06:12]} a5 {[%emt 0:00:13]} 8. Re1 {[%emt 0:07:02]} exd4 {[%emt 0:00:12]} 9. Qxd4 {[%emt 0:08:25]} Ne5 {[%emt 0:00:19]} 10. Nxe5 {[%emt 0:11:22]} dxe5 {[%emt 0:00:06]} 11. Qxd8 {[%emt 0:03:53]} Rxd8 {[%emt 0:02:47]} 12. Bg5 {[%emt 0:12:47]} c6 {[%emt 0:02:13]} 13. Rad1 {[%emt 0:01:40]} Kf8 {[%emt 0:05:58]} 14. Rxd8+ {[%emt 0:02:42]} Bxd8 {[%emt 0:01:35]} 15. Rd1 {[%emt 0:00:20]} Bb6 {[%emt 0:00:52]} 16. Bxf6 {[%emt 0:04:35]} gxf6 {[%emt 0:00:06]} 17. Ne2 {[%emt 0:02:14]} f5 {[%emt 0:03:35]} 18. Ng3 {[%emt 0:03:42]} fxe4 {[%emt 0:01:12]} 19. Nxe4 {[%emt 0:01:21]} Bf5 {[%emt 0:01:41]} 20. Re1 {[%emt 0:02:56]} Rd8 {[%emt 0:00:45]} 21. Bd3 {[%emt 0:00:07]} Bg6 {[%emt 0:02:14]} 22. g4 {[%emt 0:02:54]} Rd4 {[%emt 0:00:18]} 23. b3 {[%emt 0:00:11]} Ke7 {[%emt 0:02:05]} 24. g5 {[%emt 0:07:49]} h6 {[%emt 0:01:45]} 25. h4 {[%emt 0:01:28]} hxg5 {[%emt 0:01:44]} 26. hxg5 {[%emt 0:00:03]} Rd8 {[%emt 0:01:01]} 27. Kg2 {[%emt 0:01:16]} Rh8 {[%emt 0:02:45]} 28. Nd2 {[%emt 0:03:57]} Bxd3 {[%emt 0:02:37]} 29. cxd3 {[%emt 0:00:04]} Bc7 {[%emt 0:02:36]} 30. d4 {[%emt 0:03:29]} f6 {[%emt 0:06:12]} 31. f4 {[%emt 0:02:04]} fxg5 {[%emt 0:07:19]} 32. fxg5 {[%emt 0:00:02]} b5 {[%emt 0:06:16]} 33. axb5 {[%emt 0:00:55]} cxb5 {[%emt 0:00:03]} 34. dxe5 {[%emt 0:00:36]} Rd8 {[%emt 0:01:20]} 35. Nf3 {[%emt 0:00:33]} Rd3 {[%emt 0:00:06]} 36. Rb1 {[%emt 0:00:33]} Ke6 {[%emt 0:00:48]} 37. g6 {[%emt 0:00:23]} Rd7 {[%emt 0:00:09]} 38. Re1 {[%emt 0:00:33]} Bd8 {[%emt 0:01:39]} 39. Kf2 {[%emt 0:00:32]} Bb6+ {[%emt 0:01:52]} 40. Ke2 {[%emt 0:00:28]} Rg7 {[%emt 0:02:31]} 41. Rd1 {[%emt 0:10:52]} Bc5 {[%emt 0:00:05]} 42. Rc1 {[%emt 0:01:34]} Kd5 {[%emt 0:00:51]} 43. Rd1+ {[%emt 0:01:38]} Kc6 {[%emt 0:00:29]} 44. e6 {[%emt 0:02:46]} a4 {[%emt 0:03:14]} 45. Ne5+ {[%emt 0:01:53]} Kc7 {[%emt 0:01:37]} 46. Rc1 {[%emt 0:09:57]} Kd6 {[%emt 0:01:10]} 47. Nf7+ {[%emt 0:01:09]} Kd5 {[%emt 0:00:50]} 48. bxa4 {[%emt 0:02:26]} bxa4 {[%emt 0:00:25]} 49. Ne5 {[%emt 0:02:18]} a3 {[%emt 0:01:06]} 50. Nd7 {[%emt 0:00:30]} Bd4 {[%emt 0:00:29]} 51. Rc2 {[%emt 0:00:30]} Rxg6 {[%emt 0:00:25]} 52. Kf3 {[%emt 0:00:31]} Rxe6 {[%emt 0:00:08]} 53. Rd2 {[%emt 0:00:30]} Ra6 {[%emt 0:02:37]} 54. Ra2 {[%emt 0:00:20]} Bb2 {[%emt 0:00:26]} 55. Nb8 {[%emt 0:00:32]} Rd6 {[%emt 0:00:14]} 0-1

[Event "7th Francophone-ch 2019"]
[Site "Paris"]
[Date "2019.08.07"]
[Round "4.1"]
[White "Shchekachev, Andrei"]
[Black "Macon, Arthur"]
[Result "1/2-1/2"]
[ECO "D41"]
[WhiteElo "2531"]
[BlackElo "2270"]
[Annotator "ChessBase"]
[PlyCount "92"]
[EventDate "2019.08.04"]
[EventType "swiss"]
[EventCountry "FRA"]
[SourceTitle "playchess.com"]
[Source "ChessBase"]
[SourceQuality "1"]
[TimeControl "40/5400+30:1800+30"]

1. Nf3 {[%emt 0:12:02]} Nf6 {[%emt 0:00:00]} 2. c4 {[%emt 0:03:03]} e6 {[%emt 0:00:19]} 3. Nc3 {[%emt 0:00:38]} d5 {[%emt 0:00:17]} 4. d4 {[%emt 0:00:12]} c5 {[%emt 0:00:28]} 5. cxd5 {[%emt 0:00:49]} Nxd5 {[%emt 0:00:15]} 6. e4 {[%emt 0:07:40]} Nxc3 {[%emt 0:00:27]} 7. bxc3 {[%emt 0:00:02]} cxd4 {[%emt 0:00:13]} 8. cxd4 {[%emt 0:00:01]} Bb4+ {[%emt 0:00:14]} 9. Bd2 {[%emt 0:00:01]} Bxd2+ {[%emt 0:00:14]} 10. Qxd2 {[%emt 0:00:02]} O-O {[%emt 0:00:20]} 11. Rc1 {[%emt 0:00:05]} b6 {[%emt 0:05:32]} 12. Bd3 {[%emt 0:00:13]} Bb7 {[%emt 0:02:37]} 13. Qe3 {[%emt 0:00:52]} Nd7 {[%emt 0:04:09]} 14. e5 {[%emt 0:00:18]} Bxf3 {[%emt 0:16:18]} 15. Qxf3 {[%emt 0:04:14]} Qh4 {[%emt 0:02:06]} 16. Qe3 {[%emt 0:08:12]} Rfd8 {[%emt 0:03:36]} 17. O-O {[%emt 0:10:10]} Rac8 {[%emt 0:07:20]} 18. f4 {[%emt 0:11:26]} Nf8 {[%emt 0:07:36]} 19. Rxc8 {[%emt 0:09:12]} Rxc8 {[%emt 0:00:17]} 20. f5 {[%emt 0:00:02]} exf5 {[%emt 0:15:35]} 21. Bxf5 {[%emt 0:02:41]} Rd8 {[%emt 0:01:06]} 22. d5 {[%emt 0:12:06]} Qe7 {[%emt 0:06:44]} 23. e6 {[%emt 0:05:16]} fxe6 {[%emt 0:01:26]} 24. dxe6 {[%emt 0:00:04]} Re8 {[%emt 0:02:09]} 25. Kh1 {[%emt 0:03:08]} Ng6 {[%emt 0:05:41]} 26. Bc2 {[%emt 0:03:12]} Rf8 {[%emt 0:01:55]} 27. Rd1 {[%emt 0:04:19]} Rd8 {[%emt 0:04:53]} 28. Re1 {[%emt 0:00:02]} Rf8 {[%emt 0:02:23]} 29. Bb3 {[%emt 0:00:35]} Kh8 {[%emt 0:00:32]} 30. g3 {[%emt 0:01:52]} Re8 {[%emt 0:02:18]} 31. Qe4 {[%emt 0:01:24]} Rf8 {[%emt 0:01:41]} 32. Kg1 {[%emt 0:01:15]} Qc5+ {[%emt 0:00:19]} 33. Qe3 {[%emt 0:00:30]} Qe7 {[%emt 0:01:06]} 34. h4 {[%emt 0:00:29]} Re8 {[%emt 0:04:33]} 35. Rf1 {[%emt 0:00:32]} Rf8 {[%emt 0:00:20]} 36. Rc1 {[%emt 0:00:35]} Qf6 {[%emt 0:00:44]} 37. Re1 {[%emt 0:00:34]} Ne7 {[%emt 0:00:31]} 38. Bc4 {[%emt 0:00:30]} Qb2 {[%emt 0:01:29]} 39. Re2 {[%emt 0:00:33]} Qb1+ {[%emt 0:00:31]} 40. Re1 {[%emt 0:00:01]} Qb2 {[%emt 0:00:32]} 41. Bb3 {[%emt 0:06:17]} Qf6 {[%emt 0:02:00]} 42. Rd1 {[%emt 0:12:52]} Qb2 {[%emt 0:06:01]} 43. Qd2 {[%emt 0:09:59]} Qe5 {[%emt 0:02:14]} 44. Qg5 {[%emt 0:01:38]} Qe2 {[%emt 0:02:37]} 45. Qxe7 {[%emt 0:01:00]} Qf2+ {[%emt 0:00:20]} 46. Kh1 {[%emt 0:00:04]} Qf3+ {[%emt 0:00:06]} 1/2-1/2